bitfinex-derivatives/quotes_ETHF0:USTF0_20250828
["timestamp","ask_amount","ask_price","bid_price","bid_amount"]
[1756424045279,0.483,4495.3,4495.2,0.7076]
[1756424045484,0.66694814,4495.3,4495.2,0.7076]
[1756424046077,0.66691797,4495.3,4495.2,0.7076]
[1756424047885,0.18391797,4495.3,4495.2,0.7076]
[1756424052988,0.18391797,4495.3,4495.2,5.10798]
[1756424053388,0.18391797,4495.3,4495.2,4.7076]
[1756424053784,0.18391797,4495.3,4495.2,5.10798]
[1756424053984,0.18391797,4495.3,4495.2,4.7076]
[1756424054581,0.18391797,4495.3,4495.2,5.10798]
[1756424054786,0.18391797,4495.3,4495.2,4.7076]
[1756424055985,0.2978,4496.1,4495.3,0.2998]
[1756424056188,0.4996,4496.1,4496.0,0.4896]
[1756424056490,0.4996,4496.1,4496.0,0.7146]
[1756424056491,0.68374188,4496.1,4496.0,0.7146]
[1756424056888,0.68376683,4496.1,4496.0,0.7146]
[1756424062392,0.18416683,4496.1,4496.0,0.7146]
[1756424062788,0.48196683,4496.1,4496.0,0.4896]
[1756424062989,0.48196683,4496.1,4496.0,0.7146]
[1756424063886,0.18416683,4496.1,4496.0,0.7146]
[1756424064695,0.18416683,4496.1,4496.0,1.11491]
[1756424065088,0.2978,4498.5,4496.6,0.40025]
[1756424065385,1.58694828,4499.5,4496.2,1.00074]
[1756424065386,0.4996,4498.3,4498.2,0.1898]
[1756424067100,0.4996,4498.3,4498.2,0.3569]
[1756424067591,0.2978,4500.2,4498.3,0.1671]
[1756424067796,0.2978,4500.0,4498.3,0.1671]
[1756424067991,0.2978,4500.1,4498.5,0.1671]
[1756424068200,0.2978,4500.1,4498.7,0.1671]
[1756424070995,0.2978,4500.1,4498.6,0.225]
[1756424070996,0.4996,4500.1,4500.0,0.3569]
[1756424071596,32.034,4501.8,4500.0,0.3569]
[1756424071794,0.2978,4501.7,4500.1,0.1671]
[1756424073107,0.2978,4502.5,4500.0,0.1671]
[1756424073399,0.017,4503.0,4500.4,0.39992]
[1756424073605,0.017,4503.0,4499.9,0.225]
[1756424073606,0.225,4503.2,4500.8,0.39988]
[1756424073796,0.2978,4503.1,4500.9,0.2041]
[1756424073999,0.2978,4503.1,4501.1,0.1671]
[1756424074201,0.22212,4503.0,4501.1,0.1671]
[1756424074396,0.2978,4502.9,4501.1,0.1671]
[1756424074906,0.2018,4501.2,4498.8,1.00015]
[1756424075106,0.02,4502.4,4499.6,0.3921]
[1756424075414,0.4996,4499.7,4499.6,0.5819]
[1756424075615,0.4996,4499.7,4499.6,0.4148]
[1756424075911,0.4996,4499.7,4499.6,0.1898]
[1756424076116,0.4996,4499.7,4499.6,0.4148]
[1756424079516,0.4996,4499.7,4499.6,0.5814]
[1756424080618,0.4996,4499.7,4499.6,0.4148]
[1756424080913,0.4996,4499.7,4499.6,0.5814]
[1756424081417,0.4996,4499.7,4499.6,0.225]
[1756424085817,0.4996,4499.7,4499.6,0.5945]
[1756424086121,0.4996,4499.7,4499.6,0.3695]
[1756424086322,0.4996,4499.7,4499.6,0.5945]
[1756424087320,0.2843,4501.9,4499.7,0.1666]
[1756424087521,0.2843,4501.7,4499.8,0.225]
[1756424087722,0.4915,4499.9,4499.8,0.5945]
[1756424088917,1.19021121,4502.7,4499.9,0.1666]
[1756424089119,0.2843,4501.9,4499.9,0.1666]
[1756424089315,0.2843,4501.7,4499.9,0.1666]
[1756424089718,0.2072,4500.0,4499.9,0.3695]
[1756424089919,0.4915,4500.0,4499.9,0.3695]
[1756424090324,0.2843,4501.6,4500.0,0.1666]
[1756424090523,0.4915,4500.2,4500.1,0.5945]
[1756424091923,0.17520516,4502.1,4500.2,0.1666]
[1756424092225,0.2843,4501.9,4500.2,0.1666]
[1756424092524,0.2843,4501.7,4500.2,0.1666]
[1756424092727,0.2843,4501.5,4500.2,0.1666]
[1756424093724,0.2843,4501.5,4500.4,0.39992]
[1756424093920,0.2843,4502.7,4500.6,0.1666]
[1756424094119,0.2843,4502.5,4500.6,0.1666]
[1756424094319,0.2843,4502.3,4500.6,0.1666]
[1756424094529,0.2843,4502.1,4500.6,0.1666]
[1756424094729,0.2843,4501.9,4500.6,0.1666]
[1756424094930,0.2072,4500.7,4500.6,0.3695]
[1756424095124,0.4915,4500.7,4500.6,0.4279]
[1756424095833,0.4915,4500.7,4500.6,0.5945]
[1756424096430,0.2843,4500.7,4500.6,0.5945]
[1756424096630,0.2843,4502.3,4500.7,0.1666]
[1756424096929,0.2843,4502.1,4500.7,0.1666]
[1756424097228,0.2843,4501.9,4500.7,0.1666]
[1756424097433,0.2843,4501.7,4500.7,0.1666]
[1756424097730,0.2843,4501.5,4500.7,0.1666]
[1756424097926,0.57205283,4501.4,4500.7,0.1666]
[1756424098128,0.4915,4501.3,4501.2,0.2029]
[1756424098426,0.4915,4501.3,4501.2,0.4279]
[1756424099930,0.4915,4501.3,4501.2,0.5945]
[1756424100728,0.2843,4502.3,4501.2,0.4279]
[1756424100937,0.4915,4502.1,4502.0,0.3695]
[1756424101133,0.4915,4502.1,4502.0,0.5945]
[1756424107830,0.2047,4501.3,4501.2,32.0]
[1756424108031,0.5086,4501.3,4501.2,32.225]
[1756424111437,0.5086,4501.3,4501.2,32.3919]
[1756424112840,0.5086,4501.3,4501.2,32.225]
[1756424113542,0.5086,4501.3,4501.2,32.3919]
[1756424113940,0.3039,4502.8,4501.3,0.1669]
[1756424114142,0.57157675,4502.7,4501.3,0.22210999]
[1756424114344,0.3039,4502.5,4501.3,0.1665]
[1756424114841,0.3039,4502.5,4501.4,40.8]
[1756424115043,0.3039,4503.4,4501.6,0.1665]
[1756424115344,0.3039,4503.2,4501.6,0.1665]
[1756424115548,0.57199369,4503.1,4501.6,0.1665]
[1756424115845,0.87589369,4503.0,4501.6,0.1665]
[1756424116144,0.3039,4502.8,4501.6,0.1665]
[1756424116340,0.3039,4502.6,4501.6,0.1665]
[1756424117144,0.5086,4502.6,4502.5,0.2071]
[1756424117444,0.5086,4502.6,4502.5,0.4321]
[1756424117841,0.5086,4502.6,4502.5,0.225]
[1756424118539,0.5086,4502.6,4501.2,32.0]
[1756424118744,0.5086,4501.4,4501.3,0.5986]
[1756424119135,0.5086,4501.4,4501.2,32.0]
[1756424119342,0.5086,4501.4,4501.3,0.225]
[1756424119844,0.5086,4500.6,4500.5,0.3736]
[1756424120044,0.5086,4500.6,4500.5,0.5986]
[1756424120841,0.5086,4500.6,4499.7,40.8]
[1756424121046,1.98368535,4503.6,4496.6,15.31595692]
[1756424121047,0.2047,4500.0,4499.9,0.3736]
[1756424121344,0.5086,4500.0,4499.9,0.5986]
[1756424121944,0.5086,4500.0,4499.9,0.225]
[1756424122139,0.3039,4499.9,4499.4,0.225]
[1756424122341,0.5086,4499.5,4499.4,0.225]
[1756424125743,0.3039,4499.4,4497.7,0.1665]
[1756424125952,0.2047,4497.9,4497.8,0.4321]
[1756424126247,0.5086,4497.9,4497.8,0.5986]
[1756424126750,0.052,4499.9,4497.8,0.5986]
[1756424126944,0.3039,4499.8,4497.8,0.5986]
[1756424127141,0.22228,4499.8,4497.8,0.5986]
[1756424127351,0.3039,4499.8,4497.9,0.1665]
[1756424127549,0.17485294,4500.8,4497.8,0.225]
[1756424127851,1.98368535,4502.1,4498.5,0.1665]
[1756424127852,0.3039,4501.2,4498.5,0.1665]
[1756424128057,0.3039,4501.2,4498.7,0.1665]
[1756424128248,0.48558353,4501.2,4498.7,0.1665]
[1756424128452,32.2224256,4501.7,4498.9,0.1665]
[1756424128453,0.3039,4501.0,4498.9,0.1665]
[1756424128655,0.3039,4501.0,4499.0,0.047]
[1756424128855,0.3039,4501.0,4499.2,0.1665]
[1756424129356,0.22222,4500.9,4499.2,0.1665]
[1756424129855,0.3039,4500.8,4499.2,0.1665]
[1756424130453,0.5289,4501.6,4499.2,0.1665]
[1756424130653,0.3039,4501.5,4499.2,0.3887]
[1756424130960,0.3039,4501.4,4499.3,0.1665]
[1756424131348,0.2222,4501.3,4499.3,0.40002]
[1756424131551,0.3039,4501.2,4499.4,0.1665]
[1756424132652,5.17632506,4506.0,4499.4,0.1665]
[1756424132653,32.007,4503.2,4499.8,0.1665]
[1756424132855,0.79413828,4503.1,4500.0,0.39996]
[1756424133054,32.18676833,4503.2,4500.1,0.1665]
[1756424133055,1.09903828,4503.0,4500.1,0.1665]
[1756424133256,0.3039,4502.8,4500.1,41.42209]
[1756424133556,0.22215,4502.9,4500.2,0.22215]
[1756424133746,0.3039,4502.7,4500.2,0.1662]
[1756424133949,0.3039,4502.6,4500.4,0.39992]
[1756424134155,0.52606,4502.6,4500.6,0.1662]
[1756424134460,0.3039,4502.6,4500.6,0.1662]
[1756424134751,0.226,4502.7,4500.6,0.22214]
[1756424134951,0.52604,4502.6,4500.7,0.1662]
[1756424135459,0.3039,4502.6,4500.9,0.1662]
[1756424136359,0.52604,4502.6,4500.9,0.1662]
[1756424137456,0.22214,4502.5,4500.9,0.1662]
[1756424137654,0.50352,4503.0,4500.9,0.1662]
[1756424138053,0.22213,4502.9,4500.9,0.1662]
[1756424138256,0.2814,4502.8,4500.9,0.1662]
[1756424138460,0.50353,4502.8,4500.9,0.1662]
[1756424138652,0.22213,4502.7,4500.9,0.1662]
[1756424138854,0.2814,4502.6,4500.9,0.1662]
[1756424139054,0.50353,4502.6,4500.9,0.1662]
[1756424139354,0.2814,4502.4,4500.9,0.1662]
[1756424141756,0.2814,4503.1,4500.7,0.56639]
[1756424142068,0.2814,4503.1,4501.2,0.56635]
[1756424142356,0.2814,4503.1,4501.5,0.39982]
[1756424142663,0.2814,4503.8,4501.7,0.1665]
[1756424142966,0.22209,4504.0,4501.7,0.3998]
[1756424143261,0.2814,4503.9,4501.8,0.1665]
[1756424143461,0.50348,4503.9,4501.8,0.1665]
[1756424143664,0.2814,4503.7,4501.8,0.1665]
[1756424144061,0.2814,4503.5,4501.8,0.1665]
[1756424144663,0.22209,4503.4,4501.8,0.1665]
[1756424144865,0.50348,4503.9,4501.8,0.1665]
[1756424145566,0.22208,4503.8,4501.8,0.1665]
[1756424145759,0.2814,4503.7,4501.8,0.1665]
[1756424145968,0.50348,4503.7,4501.8,0.1665]
[1756424146161,0.22209,4503.6,4501.8,0.1665]
[1756424146466,0.2814,4503.5,4501.8,0.1665]
[1756424146763,0.50349,4503.5,4501.8,0.1665]
[1756424146956,0.225,4504.0,4501.3,0.1875]
[1756424146957,0.1902,4501.4,4501.3,0.1875]
[1756424147164,0.2814,4501.3,4501.2,32.002]
[1756424147364,0.1902,4501.1,4501.0,0.354]
[1756424147664,0.1902,4500.8,4500.7,0.225]
[1756424147855,0.4716,4500.8,4500.7,0.225]
[1756424148456,0.1902,4500.1,4500.0,0.4135]
[1756424148664,0.4716,4500.1,4500.0,0.4135]
[1756424148868,0.4716,4500.1,4500.0,0.58]
[1756424149667,31.998,4503.0,4500.1,0.1665]
[1756424149876,0.90153034,4502.9,4500.1,0.1665]
[1756424150168,0.2814,4502.7,4500.2,0.1665]
[1756424150362,0.2814,4502.5,4500.2,0.1665]
[1756424150669,0.46326074,4502.5,4500.2,0.1665]
[1756424150857,0.2814,4502.3,4500.3,0.78859]
[1756424151061,0.2814,4502.3,4500.5,0.1665]
[1756424151259,0.4716,4502.3,4502.2,0.1875]
[1756424151470,0.4716,4502.3,4501.7,0.1665]
[1756424152669,0.2814,4502.2,4500.8,0.1665]
[1756424152870,0.4716,4500.9,4500.8,0.354]
[1756424153571,0.2814,4502.9,4500.9,0.1665]
[1756424154167,31.998,4503.0,4501.0,0.22213]
[1756424154364,0.2814,4502.9,4501.1,0.1665]
[1756424155868,0.1902,4501.2,4501.1,0.354]
[1756424156068,0.4716,4501.2,4501.1,0.354]
[1756424156662,0.2814,4502.9,4501.1,0.354]
[1756424156863,0.2814,4502.8,4501.1,0.1875]
[1756424157072,0.50352,4502.8,4501.2,0.1665]
[1756424157370,0.2814,4502.8,4501.2,0.1665]
[1756424157773,0.50352,4502.8,4501.2,0.1665]
[1756424159074,0.57142845,4502.7,4501.2,0.1665]
[1756424159372,0.2814,4502.9,4501.2,0.1665]
[1756424159573,0.2814,4502.7,4501.2,0.1665]
[1756424160274,0.2814,4502.5,4501.2,0.1665]
[1756424161770,0.4716,4502.5,4502.4,0.354]
[1756424167777,0.4716,4502.5,4502.4,0.1875]
[1756424168264,0.4716,4502.5,4502.4,0.3541]
[1756424168873,0.4716,4502.5,4502.1,0.1666]
[1756424170580,0.4716,4502.5,4502.2,0.1666]
[1756424171181,0.4716,4502.5,4502.1,0.1666]
[1756424171378,0.4956,4502.5,4502.4,0.2011]
[1756424171578,0.4956,4502.5,4502.4,0.3677]
[1756424172180,0.4956,4502.5,4502.4,0.2011]
[1756424172382,0.4956,4502.5,4502.0,0.226]
[1756424172582,0.4956,4502.5,4502.1,0.1666]
[1756424172781,0.1902,4502.5,4502.4,0.2011]
[1756424173185,0.1902,4502.5,4502.4,0.3676]
[1756424173483,0.4956,4502.5,4502.1,0.1665]
[1756424173784,0.17933983,4504.1,4502.5,0.1665]
[1756424174081,0.3054,4502.5,4501.9,0.1665]
[1756424174381,0.054,4504.2,4501.6,0.225]
[1756424174382,0.5046,4502.0,4501.6,0.225]
[1756424174582,0.5046,4502.0,4501.2,0.1665]
[1756424175788,0.5046,4502.0,4501.9,0.2011]
[1756424176082,0.5046,4502.0,4501.1,0.1665]
[1756424176482,0.5046,4502.0,4501.2,0.035]
[1756424177086,0.1992,4500.9,4500.8,0.4261]
[1756424177287,0.5046,4500.9,4500.8,0.5926]
[1756424177689,0.5046,4500.9,4500.8,0.4261]
[1756424178988,0.5046,4500.9,4500.8,0.225]
[1756424179586,0.051,4502.7,4500.8,0.5926]
[1756424179786,0.3054,4502.5,4500.9,0.1665]
[1756424179982,0.57207918,4502.4,4500.9,0.1665]
[1756424180288,0.87747918,4502.3,4500.9,0.1665]
[1756424180489,0.3054,4502.1,4500.9,0.1665]
[1756424181294,0.3054,4503.0,4501.0,0.1665]
[1756424181484,0.3054,4502.8,4501.0,0.1665]
[1756424181784,0.3054,4502.6,4501.1,0.1665]
[1756424181994,0.3054,4503.4,4501.2,0.1665]
[1756424182287,0.3054,4503.2,4501.3,0.1665]
[1756424182482,0.061,4503.6,4501.3,0.1665]
[1756424182483,0.3054,4503.0,4501.3,0.38860999]
[1756424182689,0.3054,4502.8,4501.4,0.1665]
[1756424183094,0.5046,4501.5,4501.4,0.3676]
[1756424183584,0.5046,4501.5,4501.0,0.1665]
[1756424183982,0.5046,4501.5,4500.8,0.225]
[1756424184187,0.3054,4503.4,4501.1,0.1665]
[1756424184389,0.3054,4503.4,4501.0,0.9997]
[1756424184390,0.3054,4503.2,4501.7,0.1665]
[1756424184585,0.3054,4503.2,4501.9,0.1665]
[1756424184781,0.1992,4502.0,4501.9,0.2011]
[1756424184989,0.1992,4501.6,4501.1,1.97713939]
[1756424185189,0.1992,4501.6,4500.7,3.1850832]
[1756424185190,0.1992,4501.6,4501.5,0.2011]
[1756424185493,0.1992,4501.6,4501.3,0.1665]
[1756424185692,1.76191123,4504.2,4501.3,0.226]
[1756424185693,0.1992,4501.4,4501.3,0.226]
[1756424185888,0.5046,4501.4,4500.8,0.1665]
[1756424186094,0.5046,4501.4,4501.2,0.226]
[1756424187994,0.1992,4501.4,4501.3,0.2011]
[1756424188197,0.1992,4501.4,4501.3,0.3676]
[1756424188598,0.5046,4501.4,4501.3,0.3676]
[1756424189004,0.5046,4501.4,4501.2,0.226]
[1756424189691,0.5046,4501.3,4501.2,0.5936]
[1756424190696,0.3054,4503.2,4501.3,0.1665]
[1756424190896,0.5046,4503.0,4502.9,0.2011]
[1756424191102,0.5046,4503.0,4502.9,0.3676]
[1756424191995,31.998,4504.6,4502.9,0.3676]
[1756424191996,0.3054,4504.5,4502.9,0.3676]
[1756424192201,0.3054,4504.3,4503.0,0.1665]
[1756424194203,0.5046,4503.1,4502.4,0.1665]
[1756424194405,0.5046,4503.1,4502.5,0.226]
[1756424194909,0.5046,4503.1,4503.0,0.2011]
[1756424195108,0.5046,4503.1,4503.0,0.3676]
[1756424195409,0.5046,4502.6,4502.5,0.3676]
[1756424195600,0.5046,4502.5,4502.4,0.226]
[1756424195805,0.5046,4502.5,4502.1,0.226]
[1756424196211,0.1991,4502.2,4502.1,0.4207]
[1756424196503,0.3039,4504.4,4502.2,0.1666]
[1756424196714,0.3039,4504.2,4502.2,0.1666]
[1756424196904,0.3039,4504.0,4502.2,0.1666]
[1756424197105,8.926,4505.0,4502.5,0.39976]
[1756424197309,0.3039,4504.8,4502.7,0.1666]
[1756424197610,0.3039,4504.6,4502.7,0.1666]
[1756424198209,0.067,4505.0,4502.7,0.1666]
[1756424198210,0.3039,4504.4,4502.7,0.1666]
[1756424198599,0.22205,4504.3,4502.7,0.1666]
[1756424199005,0.3039,4504.2,4502.7,0.1666]
[1756424200106,0.3039,4504.2,4502.8,0.226]
[1756424200804,0.3039,4504.2,4502.9,0.1666]
[1756424203306,0.503,4503.0,4502.9,0.3613]
[1756424205814,0.503,4503.0,4502.9,0.5873]
[1756424206916,0.051,4505.0,4503.0,0.1666]
[1756424207117,0.87377383,4504.9,4503.0,0.1666]
[1756424207416,0.56987383,4504.8,4503.0,0.1666]
[1756424207617,0.1991,4503.1,4503.0,0.3613]
[1756424207817,0.503,4503.1,4503.0,0.3613]
[1756424208320,0.3039,4504.9,4503.1,0.1666]
[1756424208521,0.57031393,4504.8,4503.1,0.1666]
[1756424208718,0.3039,4504.6,4503.1,0.1666]
[1756424209221,0.52593,4504.6,4503.1,0.1666]
[1756424210616,0.3039,4504.6,4503.5,0.39966]
[1756424210821,0.3039,4505.0,4503.4,0.1666]
[1756424211017,0.3039,4505.0,4503.4,0.56628]
[1756424211223,0.3039,4505.0,4503.5,0.56627]
[1756424211523,0.3039,4505.0,4503.7,0.1666]
[1756424211725,0.3039,4505.0,4503.5,0.39967]
[1756424211726,0.3039,4505.0,4503.8,0.1]
[1756424212025,0.3039,4505.0,4503.9,0.1666]
[1756424212819,0.1991,4504.0,4503.9,0.3613]
[1756424213019,0.503,4504.0,4503.9,0.3613]
[1756424215024,0.1991,4503.3,4503.2,0.3613]
[1756424215227,0.503,4503.3,4503.2,0.1947]
[1756424215526,0.503,4503.3,4503.0,0.226]
[1756424217016,0.1991,4503.3,4503.0,0.3926]
[1756424217217,0.1991,4503.2,4503.1,0.3613]
[1756424217425,0.503,4503.2,4502.7,0.1666]
[1756424217627,0.1991,4503.2,4502.8,0.226]
[1756424217824,0.3039,4503.1,4502.9,0.1666]
[1756424218026,0.503,4503.0,4502.9,0.3613]
[1756424220227,0.051,4504.9,4502.9,0.3613]
[1756424220422,0.8761255,4504.8,4503.0,0.1666]
[1756424220631,0.1991,4502.5,4502.4,0.3613]
[1756424220820,0.3039,4502.4,4501.9,4.77983974]
[1756424221018,0.503,4502.0,4501.9,0.3613]
[1756424221222,0.503,4502.0,4501.9,0.5873]
[1756424221423,0.3039,4503.8,4501.9,0.4207]
[1756424221622,0.1991,4502.1,4502.0,0.3613]
[1756424221828,0.1991,4502.1,4502.0,0.226]
[1756424222029,0.503,4502.1,4502.0,0.226]
[1756424222732,0.503,4501.5,4501.4,32.223]
[1756424223127,0.1991,4500.6,4500.5,0.3613]
[1756424223331,0.503,4500.6,4500.5,0.4207]
[1756424223630,0.503,4500.6,4500.5,0.226]
[1756424223931,0.3039,4502.2,4500.5,0.5873]
[1756424224132,1.58694828,4503.3,4500.5,0.5873]
[1756424224133,0.3039,4502.0,4500.6,0.1666]
[1756424225031,0.053,4502.9,4500.7,0.39992]
[1756424225327,0.3039,4503.7,4501.3,0.39986]
[1756424225534,31.984,4504.1,4501.6,0.39984]
[1756424225535,0.3039,4503.5,4501.6,0.39984]
[1756424225735,0.3039,4504.0,4501.8,0.1666]
[1756424225929,0.3039,4503.8,4501.8,0.1666]
[1756424226123,0.2905,4503.6,4501.8,0.1666]
[1756424227530,31.984,4504.1,4502.2,0.1664]
[1756424227729,0.86154322,4504.0,4502.2,0.1664]
[1756424228031,0.2905,4504.0,4502.2,0.1664]
[1756424228235,31.984,4504.1,4502.2,0.39979]
[1756424228432,0.2905,4504.0,4502.3,0.1664]
[1756424230228,0.4852,4502.4,4502.3,0.3622]
[1756424230430,0.1947,4502.4,4501.7,32.1554]
[1756424230731,0.4852,4501.9,4501.8,0.5882]
[1756424231237,0.4852,4501.9,4501.8,0.226]
[1756424231436,0.2905,4501.8,4501.7,31.989]
[1756424231626,0.2905,4501.8,4500.9,0.1664]
[1756424231831,0.4852,4501.0,4500.9,0.3622]
[1756424232031,0.4852,4501.0,4500.9,0.5742]
[1756424232226,0.2905,4503.7,4500.9,0.5742]
[1756424232433,0.2905,4503.5,4501.8,0.39982]
[1756424232626,0.2905,4503.3,4502.3,0.56618]
[1756424232833,0.2905,4504.0,4502.8,0.1666]
[1756424233034,0.2905,4504.5,4502.8,0.1666]
[1756424233235,0.2905,4504.3,4502.8,0.1666]
[1756424233636,0.219,4504.6,4503.1,0.1666]
[1756424233836,0.86182023,4504.5,4503.1,0.1666]
[1756424234043,0.1947,4503.2,4503.1,0.3624]
[1756424234229,0.4852,4503.2,4503.1,0.1958]
[1756424234633,0.4852,4503.2,4503.1,0.3624]
[1756424234833,0.4852,4503.2,4503.1,0.5884]
[1756424235433,0.1947,4503.2,4503.1,0.5884]
[1756424235741,0.2905,4504.7,4503.2,0.1666]
[1756424235943,0.4852,4503.3,4503.2,0.3624]
[1756424236335,0.05,4505.1,4503.2,0.1666]
[1756424236530,0.2905,4504.9,4503.5,0.1666]
[1756424236742,0.2905,4504.9,4503.6,0.39965]
[1756424236936,0.2905,4503.7,4502.3,0.1666]
[1756424237141,0.2905,4503.7,4502.5,0.1666]
[1756424237730,0.1947,4502.6,4502.5,41.1624]
[1756424237936,0.4852,4502.6,4502.5,41.3894]
[1756424238137,0.4852,4502.4,4502.3,0.227]
[1756424238338,0.4852,4502.4,4502.3,0.5894]
[1756424238736,0.05,4504.0,4502.3,0.5894]
[1756424238737,0.2905,4502.8,4502.3,0.5894]
[1756424238943,0.03,4504.3,4502.4,0.1666]
[1756424239147,0.2905,4504.2,4502.4,0.1666]
[1756424240339,8.926,4505.5,4502.9,0.1666]
[1756424240542,1.11306525,4505.4,4503.1,0.1666]
[1756424240743,0.2905,4505.2,4503.1,0.1666]
[1756424240936,0.2905,4505.0,4503.1,0.1666]
[1756424241135,0.57053525,4504.9,4503.1,0.1666]
[1756424241342,0.2905,4504.8,4503.1,0.1666]
[1756424244646,0.4852,4503.1,4502.9,0.227]
[1756424244849,0.4852,4502.4,4502.3,0.3624]
[1756424245050,0.4852,4502.4,4502.3,0.1958]
[1756424245243,0.4852,4502.4,4502.1,0.227]
[1756424245444,0.1947,4502.4,4501.9,32.1566]
[1756424245644,0.1947,4502.1,4502.0,0.227]
[1756424245941,0.4852,4502.1,4502.0,0.227]
[1756424248547,0.4852,4502.1,4502.0,0.4228]
[1756424248743,0.2905,4502.1,4502.0,0.5894]
[1756424249049,0.2905,4503.7,4502.1,0.1666]
[1756424249249,0.57079093,4503.6,4502.1,0.1666]
[1756424249449,0.86129093,4503.5,4502.1,0.1666]
[1756424249644,0.2905,4502.1,4501.9,31.99]
[1756424249850,0.4852,4502.0,4501.9,32.217]
[1756424250050,0.22207,4504.0,4501.9,32.3836]
[1756424250248,1.58694828,4504.8,4501.9,32.3836]
[1756424250249,0.4852,4502.1,4502.0,0.1666]
[1756424250442,0.4852,4502.1,4501.9,31.99]
[1756424250647,0.2905,4502.0,4501.9,32.217]
[1756424250941,0.2905,4502.0,4501.1,0.1666]
[1756424251145,0.4852,4501.2,4501.1,0.3624]
[1756424251341,0.2905,4503.6,4501.2,0.1666]
[1756424251651,0.2905,4503.4,4501.2,0.1666]
[1756424251850,0.2905,4503.2,4501.2,0.1666]
[1756424252449,0.1947,4501.3,4501.2,0.3624]
[1756424252649,0.4852,4501.0,4500.4,33.97681868]
[1756424252955,0.1947,4500.7,4500.6,0.3624]
[1756424253154,0.4852,4500.7,4500.6,0.3624]
[1756424253752,1.19021121,4503.3,4500.6,0.3624]
[1756424254050,1.08317375,4503.2,4500.7,0.1666]
[1756424254251,0.2905,4503.0,4500.7,0.1666]
[1756424254459,0.2905,4502.8,4500.7,0.1666]
[1756424254754,1.58694828,4503.8,4500.5,0.227]
[1756424254755,0.2905,4502.6,4500.9,0.1666]
[1756424255056,0.2905,4502.6,4501.1,0.1666]
[1756424255649,1.19021121,4504.0,4501.6,0.1666]
[1756424255855,0.86133326,4503.8,4501.8,0.1666]
[1756424256155,0.2815,4503.6,4501.8,0.1666]
[1756424256364,0.57083326,4503.5,4501.8,0.39982]
[1756424256657,0.2815,4503.4,4501.9,0.1669]
[1756424260160,31.99,4503.9,4501.9,0.39981]
[1756424260360,0.50358,4503.8,4502.0,0.1669]
[1756424261263,0.2815,4502.0,4501.9,0.084]
[1756424261465,0.4742,4502.0,4501.9,0.084]
[1756424262965,0.4742,4502.0,4497.5,10.04371226]
[1756424262966,0.2815,4501.9,4500.9,0.1669]
[1756424263171,0.4742,4501.0,4500.9,0.2015]
[1756424263365,0.22212,4503.1,4500.9,0.5954]
[1756424263565,0.2815,4502.9,4500.9,0.5954]
[1756424263760,0.4742,4501.0,4500.9,0.5954]
[1756424264564,0.4742,4501.0,4500.9,0.3684]
[1756424264769,0.4742,4501.0,4500.9,0.5954]
[1756424265359,0.049,4503.2,4500.9,0.5954]
[1756424265562,0.2815,4503.0,4500.9,0.5954]
[1756424265766,0.2815,4502.8,4501.0,0.1669]
[1756424266371,0.22213,4502.7,4501.0,0.1669]
[1756424266673,0.2815,4502.6,4501.0,0.1669]
[1756424266972,0.50363,4502.6,4501.0,0.1669]
[1756424267275,0.3345,4503.6,4501.1,0.1669]
[1756424267577,0.2815,4503.4,4501.1,0.56678]
[1756424267766,0.2815,4503.2,4501.2,0.1669]
[1756424267961,0.4742,4501.3,4501.2,0.3684]
[1756424268270,0.4742,4501.3,4500.9,0.227]
[1756424269471,0.1927,4501.3,4500.9,0.227]
[1756424269671,0.4742,4501.0,4500.9,0.4285]
[1756424270761,0.4742,4501.0,4500.9,0.5954]
[1756424271170,0.053,4502.4,4500.9,0.5954]
[1756424271473,0.4742,4500.7,4500.6,0.5954]
[1756424272074,0.053,4502.4,4500.6,0.5954]
[1756424272273,0.053,4502.4,4500.1,0.1669]
[1756424272274,0.1927,4500.5,4500.1,0.1669]
[1756424272478,0.1927,4500.5,4499.6,1.98781868]
[1756424272479,0.2815,4502.2,4499.6,0.227]
[1756424272672,0.4742,4499.7,4499.6,0.4285]
[1756424272976,0.4742,4499.7,4499.6,0.227]
[1756424275178,0.4742,4499.7,4499.6,0.5954]
[1756424277266,33.18721121,4502.1,4499.7,0.4]
[1756424277267,0.05,4501.4,4499.7,0.4]
[1756424277580,0.2815,4501.3,4499.8,0.4]
[1756424277780,0.2815,4501.4,4499.8,0.4]
[1756424277969,0.2815,4501.5,4499.9,0.1669]
[1756424278570,31.997,4502.1,4500.5,0.39993]
[1756424278873,0.2815,4501.9,4500.5,0.2679]
[1756424279278,0.2815,4502.0,4500.6,0.56682]
[1756424279477,0.2815,4502.0,4500.7,0.1669]
[1756424279678,0.1927,4500.8,4500.7,0.3684]
[1756424279878,0.4742,4500.8,4500.7,0.1669]
[1756424280076,0.4742,4500.8,4500.5,0.135]
[1756424280277,0.1927,4500.1,4500.0,0.227]
[1756424280580,0.2815,4501.9,4500.1,0.39997]
[1756424280774,0.2222,4502.0,4500.1,0.39997]
[1756424280982,0.2815,4501.8,4500.0,0.79388]
[1756424281177,0.227,4501.9,4500.2,0.1669]
[1756424281476,0.1927,4500.3,4500.0,0.227]
[1756424281683,0.4742,4500.2,4500.1,0.3684]